fUSD/lending_fUSD_20250724
["ID","MTS","AMOUNT","RATE_DAILY","PERIOD"]
[374487712,1753319480233,-327.5792998,0.00022191,2]
[374487713,1753319480243,-400.0,0.00022191,2]
[374487714,1753319480252,-1063.66,0.00022191,2]
[374487715,1753319480261,-680.54,0.00022191,2]
[374487716,1753319480273,-460.0,0.00022191,2]
[374487717,1753319480283,-400.0,0.00022191,2]
[374487718,1753319480292,-400.0,0.00022191,2]
[374487719,1753319480306,-1079.53,0.00022191,2]
[374487720,1753319480315,-400.0,0.00022191,2]
[374487721,1753319480326,-400.0,0.00022191,2]
[374487722,1753319480336,-400.0,0.00022191,2]
[374487723,1753319480346,-400.0,0.00022191,2]
[374487724,1753319480355,-593.13,0.00022191,2]
[374487725,1753319480364,-400.0,0.00022191,2]
[374487726,1753319480374,-400.0,0.00022191,2]
[374487727,1753319480383,-489.79,0.00022191,2]
[374487728,1753319480393,-413.41,0.00022191,2]
[374487729,1753319480402,-164.497053,0.00022191,2]
[374487730,1753319480411,-400.0,0.00022191,2]
[374487731,1753319480420,-400.0,0.00022191,2]
[374487732,1753319480430,-511.05585422,0.00022191,2]
[374487733,1753319480439,-400.0,0.00022191,2]
[374487734,1753319480449,-405.97,0.00022191,2]
[374487735,1753319480458,-454.57,0.00022191,2]
[374487736,1753319480468,-611.91,0.00022191,2]
[374487737,1753319480477,-1127.57,0.00022191,2]
[374487738,1753319480487,-400.0,0.00022191,2]
[374487739,1753319480495,-1249.530377,0.00022191,2]
[374487740,1753319480505,-710.09,0.00022191,2]
[374487741,1753319480514,-400.0,0.00022191,2]
[374487742,1753319480523,-1347.12917,0.00022191,2]
[374487743,1753319480533,-520.76,0.00022191,2]
[374487744,1753319480542,-966.39,0.00022191,2]
[374487745,1753319480551,-168.73401177,0.00022191,2]
[374487746,1753319480560,-520.0,0.00022191,2]
[374487747,1753319480571,-3193.87,0.00022191,2]
[374487748,1753319480581,-1262.436461,0.00022191,2]
[374487749,1753319480591,-440.0,0.00022191,2]
[374487750,1753319480600,-2765.02,0.00022191,2]
[374487751,1753319480610,-2765.02,0.00022191,2]
[374487752,1753319480620,-1014.27,0.00022191,2]
[374487753,1753319480629,-400.0,0.00022191,2]
[374487754,1753319480639,-400.0,0.00022191,2]
[374487755,1753319480649,-1183.78,0.00022191,2]
[374487756,1753319480658,-754.93,0.00022191,2]
[374487757,1753319480668,-400.0,0.00022191,2]
[374487758,1753319480677,-400.0,0.00022191,2]
[374487759,1753319480687,-407.16605668,0.00022191,2]
[374487760,1753319480697,-460.0,0.00022191,2]
[374487761,1753319480706,-400.0,0.00022191,2]
[374487762,1753319480716,-400.0,0.00022191,2]
[374487763,1753319480725,-524.39,0.00022191,2]
[374487764,1753319480735,-969.06,0.00022191,2]
[374487765,1753319480745,-400.0,0.00022191,2]
[374487766,1753319480754,-400.0,0.00022191,2]
[374487767,1753319480763,-400.0,0.00022191,2]
[374487768,1753319480774,-400.0,0.00022191,2]
[374487769,1753319480784,-528.55827508,0.00022191,2]
[374487770,1753319480794,-346.36809866,0.00022191,2]
[374487771,1753319480804,-1178.49,0.00022191,2]
[374487772,1753319480814,-1180.49,0.00022191,2]
[374487773,1753319480824,-400.0,0.00022191,2]
[374487774,1753319480834,-400.0,0.00022191,2]
[374487775,1753319480843,-592.27,0.00022191,2]
[374487776,1753319480852,-330.84411651,0.00022191,2]
[374487777,1753319480862,-1491.94,0.00022191,2]
[374487778,1753319480871,-450.62,0.00022191,2]
[374487779,1753319480881,-614.02,0.00022191,2]
[374487780,1753319480890,-851.36,0.00022191,2]
[374487781,1753319480900,-815.01,0.00022191,2]
[374487782,1753319480909,-400.0,0.00022191,2]
[374487783,1753319480919,-746.37,0.00022191,2]
[374487784,1753319480929,-400.0,0.00022191,2]
[374487785,1753319480938,-416.87,0.00022191,2]
[374487786,1753319480948,-1412.95,0.00022191,2]
[374487787,1753319480957,-460.0,0.00022191,2]
[374487788,1753319480967,-400.0,0.00022191,2]
[374487789,1753319480977,-2115.41,0.00022191,2]
[374487790,1753319480986,-400.0,0.00022191,2]
[374487791,1753319480996,-400.0,0.00022191,2]
[374487792,1753319481006,-400.0,0.00022191,2]
[374487793,1753319481015,-400.0,0.00022191,2]
[374487794,1753319481025,-400.0,0.00022191,2]
[374487795,1753319481035,-3471.41,0.00022191,2]
[374487796,1753319481045,-595.62,0.00022191,2]
[374487797,1753319481055,-1498.41,0.00022191,2]
[374487798,1753319481065,-1240.42,0.00022191,2]
[374487799,1753319481076,-400.0,0.00022191,2]
[374487800,1753319481086,-300.0,0.00022191,2]
[374487801,1753319481096,-691.66,0.00022191,2]
[374487802,1753319481105,-641.64,0.00022191,2]
[374487803,1753319481115,-690.03,0.00022191,2]
[374487804,1753319481124,-400.0,0.00022191,2]
[374487805,1753319481134,-879.24,0.00022191,2]
[374487806,1753319481143,-806.14,0.00022191,2]
[374487807,1753319481153,-454.90993425,0.00022191,2]
[374487808,1753319481163,-583.29,0.00022191,2]
[374487809,1753319481173,-400.0,0.00022191,2]
[374487810,1753319481184,-1088.28,0.00022191,2]
[374487811,1753319481194,-337.08407618,0.00022191,2]
[374487812,1753319481203,-1042.7,0.00022191,2]
[374487813,1753319481213,-400.0,0.00022191,2]
[374487814,1753319481222,-400.0,0.00022191,2]
[374487815,1753319481232,-795.51,0.00022191,2]
[374487816,1753319481241,-732.3,0.00022191,2]
[374487817,1753319481251,-520.83,0.00022191,2]
[374487818,1753319481260,-698.72,0.00022191,2]
[374487819,1753319481270,-935.98,0.00022191,2]
[374487820,1753319481280,-489.21,0.00022191,2]
[374487821,1753319481293,-400.0,0.00022191,2]
[374487822,1753319481303,-400.0,0.00022191,2]
[374487823,1753319481312,-708.86,0.00022191,2]
[374487824,1753319481327,-400.0,0.00022191,2]
[374487825,1753319481341,-400.0,0.00022191,2]
[374487826,1753319481351,-654.95,0.00022191,2]
[374487827,1753319481361,-400.0,0.00022191,2]
[374487828,1753319481371,-1610.73,0.00022191,2]
[374487829,1753319481381,-400.0,0.00022191,2]
[374487830,1753319481391,-1218.28,0.00022191,2]
[374487831,1753319481400,-480.0,0.00022191,2]
[374487832,1753319481409,-400.0,0.00022191,2]
[374487833,1753319481418,-400.0,0.00022191,2]
[374487834,1753319481429,-400.0,0.00022191,2]
[374487835,1753319481438,-401.36,0.00022191,2]
[374487836,1753319481447,-1294.53,0.00022191,2]
[374487837,1753319481457,-400.0,0.00022191,2]
[374487838,1753319481466,-400.0,0.00022191,2]
[374487839,1753319481476,-1014.71,0.00022191,2]
[374487840,1753319481485,-544.63489072,0.00022191,2]
[374487841,1753319481494,-677.12,0.00022191,2]
[374487842,1753319481504,-400.0,0.00022191,2]
[374487843,1753319481513,-400.0,0.00022191,2]
[374487844,1753319481522,-960.77,0.00022191,2]
[374487845,1753319481531,-400.0,0.00022191,2]
[374487846,1753319481541,-807.08,0.00022191,2]
[374487847,1753319481550,-624.23,0.00022191,2]
[374487848,1753319481561,-684.45,0.00022191,2]
[374487849,1753319481570,-1780.28,0.00022191,2]
[374487850,1753319481581,-1202.47,0.00022191,2]
[374487851,1753319481591,-400.0,0.00022191,2]
[374487852,1753319481600,-197.14209958,0.00022191,2]
[374487853,1753319481610,-480.0,0.00022191,2]
[374487854,1753319481619,-5185.1,0.00022191,2]
[374487855,1753319481630,-400.0,0.00022191,2]
[374487856,1753319481639,-686.61,0.00022191,2]
[374487857,1753319481650,-890.74,0.00022191,2]
[374487858,1753319481664,-3111.59,0.00022191,2]
[374487859,1753319481673,-461.41,0.00022191,2]
[374487860,1753319481683,-400.0,0.00022191,2]
[374487861,1753319481693,-588.5,0.00022191,2]
[374487862,1753319481702,-400.0,0.00022191,2]
[374487863,1753319481711,-400.0,0.00022191,2]
[374487864,1753319481721,-613.69,0.00022191,2]
[374487865,1753319481730,-400.0,0.00022191,2]
[374487866,1753319481740,-400.0,0.00022191,2]
[374487867,1753319481750,-493.03,0.00022191,2]
[374487868,1753319481760,-400.0,0.00022191,2]
[374487869,1753319481770,-400.0,0.00022191,2]
[374487870,1753319481779,-511.75,0.00022191,2]
[374487871,1753319481798,-3100.65,0.00022191,2]
[374487872,1753319481809,-400.0,0.00022191,2]
[374487873,1753319481819,-400.0,0.00022191,2]
[374487874,1753319481831,-1271.55,0.00022191,2]
[374487875,1753319481841,-1000.0,0.00022191,2]
[374487876,1753319481851,-413.0,0.00022191,2]
[374487877,1753319481861,-400.0,0.00022191,2]
[374487878,1753319481871,-427.91,0.00022191,2]
[374487879,1753319481880,-738.96,0.00022191,2]
[374487880,1753319481890,-430.0,0.00022191,2]
[374487881,1753319481900,-400.0,0.00022191,2]
[374487882,1753319481910,-400.0,0.00022191,2]
[374487883,1753319481919,-480.0,0.00022191,2]
[374487884,1753319481929,-400.0,0.00022191,2]
[374487885,1753319481938,-258.59999873,0.00022191,2]
[374487886,1753319481948,-400.0,0.00022191,2]
[374487887,1753319481958,-400.0,0.00022191,2]
[374487888,1753319481967,-400.0,0.00022191,2]
[374487889,1753319481977,-1446.41,0.00022191,2]
[374487890,1753319481986,-536.22,0.00022191,2]
[374487891,1753319481997,-703.57,0.00022191,2]
[374487892,1753319482011,-1290.31,0.00022191,2]
[374487893,1753319482029,-457.88,0.00022191,2]
[374487894,1753319482039,-504.65,0.00022191,2]
[374487895,1753319482048,-568.27,0.00022191,2]
[374487896,1753319482058,-1167.78,0.00022191,2]
[374487897,1753319482067,-400.0,0.00022191,2]
[374487898,1753319482079,-400.0,0.00022191,2]
[374487899,1753319482089,-480.07,0.00022191,2]
[374487900,1753319482098,-400.0,0.00022191,2]
[374487901,1753319482108,-1065.67,0.00022191,2]
[374487902,1753319482118,-724.77,0.00022191,2]
[374487903,1753319482128,-400.0,0.00022191,2]
[374487904,1753319482138,-400.0,0.00022191,2]
[374487905,1753319482148,-9491.6,0.00022191,2]
[374487906,1753319482157,-2411.26,0.00022191,2]
[374487907,1753319482167,-1430.62,0.00022191,2]
[374487908,1753319482176,-476.31,0.00022191,2]
[374487909,1753319482185,-2715.56,0.00022191,2]
[374487910,1753319482194,-400.0,0.00022191,2]
[374487911,1753319482204,-400.0,0.00022191,2]
[374487912,1753319482213,-400.0,0.00022191,2]
[374487913,1753319482223,-400.0,0.00022191,2]
[374487914,1753319482232,-1766.45,0.00022191,2]
[374487915,1753319482241,-1119.97,0.00022191,2]
[374487916,1753319482251,-2818.42,0.00022191,2]
[374487917,1753319482260,-400.0,0.00022191,2]
[374487918,1753319482270,-871.69,0.00022191,2]
[374487919,1753319482279,-400.0,0.00022191,2]
[374487920,1753319482292,-1484.12,0.00022191,2]
[374487921,1753319482302,-400.0,0.00022191,2]
[374487922,1753319482311,-400.0,0.00022191,2]
[374487923,1753319482322,-400.0,0.00022191,2]
[374487924,1753319482332,-400.0,0.00022191,2]
[374487925,1753319482341,-400.0,0.00022191,2]
[374487926,1753319482351,-731.67,0.00022191,2]
[374487927,1753319482360,-400.0,0.00022191,2]
[374487928,1753319482370,-180.0,0.00022191,2]
[374487929,1753319482379,-400.0,0.00022191,2]
[374487930,1753319482388,-1409.85,0.00022191,2]
[374487931,1753319482398,-400.0,0.00022191,2]
[374487932,1753319482408,-510.65,0.00022191,2]
[374487933,1753319482417,-400.0,0.00022191,2]
[374487934,1753319482426,-523.48,0.00022191,2]
[374487935,1753319482435,-400.0,0.00022191,2]
[374487936,1753319482444,-1058.74,0.00022191,2]
[374487937,1753319482453,-540.0,0.00022191,2]
[374487938,1753319482463,-400.0,0.00022191,2]
[374487939,1753319482472,-400.0,0.00022191,2]
[374487940,1753319482482,-2489.45,0.00022191,2]
[374487941,1753319482491,-423.5,0.00022191,2]
[374487942,1753319482501,-511.81,0.00022191,2]
[374487943,1753319482511,-504.1,0.00022191,2]
[374487944,1753319482520,-400.0,0.00022191,2]
[374487945,1753319482530,-400.0,0.00022191,2]
[374487946,1753319482539,-400.0,0.00022191,2]
[374487947,1753319482548,-400.0,0.00022191,2]
[374487948,1753319482558,-400.0,0.00022191,2]
[374487949,1753319482567,-3041.27,0.00022191,2]
[374487950,1753319482579,-400.0,0.00022191,2]
[374487951,1753319482589,-722.78,0.00022191,2]
[374487952,1753319482598,-521.42838311,0.00022191,2]
[374487953,1753319482609,-400.0,0.00022191,2]
[374487954,1753319482619,-400.0,0.00022191,2]
[374487955,1753319482628,-440.0,0.00022191,2]
[374487956,1753319482638,-763.19,0.00022191,2]
[374487957,1753319482647,-2198.29,0.00022191,2]
[374487958,1753319482656,-400.0,0.00022191,2]
[374487959,1753319482666,-400.0,0.00022191,2]
[374487960,1753319482675,-400.0,0.00022191,2]
[374487961,1753319482684,-400.0,0.00022191,2]
[374487962,1753319482694,-953.77,0.00022191,2]
[374487963,1753319482703,-400.0,0.00022191,2]
[374487964,1753319482713,-7869.17,0.00022191,2]
[374487965,1753319482722,-400.0,0.00022191,2]
[374487966,1753319482732,-1223.02,0.00022191,2]
[374487967,1753319482742,-1704.19,0.00022191,2]
[374487968,1753319482755,-4137.39,0.00022191,2]
[374487969,1753319482764,-915.39,0.00022191,2]
[374487970,1753319482775,-1066.64,0.00022191,2]
[374487971,1753319482785,-1613.29,0.00022191,2]
[374487972,1753319482795,-659.99,0.00022191,2]
[374487973,1753319482804,-400.0,0.00022191,2]
[374487974,1753319482813,-400.0,0.00022191,2]
[374487975,1753319482823,-400.0,0.00022191,2]
[374487976,1753319482833,-400.0,0.00022191,2]
[374487977,1753319482842,-400.0,0.00022191,2]
[374487978,1753319482851,-966.14,0.00022191,2]
[374487979,1753319482861,-400.0,0.00022191,2]
[374487980,1753319482870,-400.0,0.00022191,2]
[374487981,1753319482880,-842.8,0.00022191,2]
[374487982,1753319482889,-1299.32,0.00022191,2]
[374487983,1753319482899,-547.33330497,0.00022191,2]
[374487984,1753319482909,-1546.1,0.00022191,2]
[374487985,1753319482919,-400.0,0.00022191,2]
[374487986,1753319482928,-658.13,0.00022191,2]
[374487987,1753319482937,-3563.72,0.00022191,2]
[374487988,1753319482947,-400.0,0.00022191,2]
[374487989,1753319482956,-400.0,0.00022191,2]
[374487990,1753319482965,-400.0,0.00022191,2]
[374487991,1753319482975,-1034.2,0.00022191,2]
[374487992,1753319482984,-1101.3,0.00022191,2]
[374487993,1753319482994,-400.0,0.00022191,2]
[374487994,1753319483003,-400.0,0.00022191,2]
[374487995,1753319483013,-400.0,0.00022191,2]
[374487996,1753319483022,-2148.84,0.00022191,2]
[374487997,1753319483032,-2014.49,0.00022191,2]
[374487998,1753319483042,-480.0,0.00022191,2]
[374487999,1753319483052,-820.57,0.00022191,2]
[374488000,1753319483061,-649.51,0.00022191,2]
[374488001,1753319483071,-1433.91,0.00022191,2]
[374488002,1753319483081,-953.87,0.00022191,2]
[374488003,1753319483091,-400.0,0.00022191,2]
[374488004,1753319483100,-400.0,0.00022191,2]
[374488005,1753319483109,-378.53276779,0.00022191,2]
[374488006,1753319483118,-631.06,0.00022191,2]
[374488007,1753319483128,-597.78,0.00022191,2]
[374488008,1753319483137,-640.69,0.00022191,2]
[374488009,1753319483149,-500.0,0.00022191,2]
[374488010,1753319483158,-400.0,0.00022191,2]
[374488011,1753319483169,-1700.99,0.00022191,2]
[374488012,1753319483179,-520.0,0.00022191,2]
[374488013,1753319483189,-2213.95,0.00022191,2]
[374488014,1753319483201,-400.0,0.00022191,2]
[374488015,1753319483221,-1242.59,0.00022191,2]
[374488016,1753319483230,-400.0,0.00022191,2]
[374488017,1753319483240,-1928.74,0.00022191,2]
[374488018,1753319483255,-1839.16,0.00022191,2]
[374488019,1753319483273,-160.0,0.00022191,2]
[374488020,1753319483284,-592.17,0.00022191,2]
[374488021,1753319483297,-596.73,0.00022191,2]
[374488022,1753319483306,-1076.39,0.00022191,2]
[374488023,1753319483316,-400.0,0.00022191,2]
[374488024,1753319483327,-2584.85,0.00022191,2]
[374488025,1753319483337,-24063.27,0.00022191,2]
[374488026,1753319483346,-480.0,0.00022191,2]
[374488027,1753319483357,-1862.22,0.00022191,2]
[374488028,1753319483371,-400.0,0.00022191,2]
[374488029,1753319483383,-786.85,0.00022191,2]
[374488030,1753319483393,-400.0,0.00022191,2]
[374488031,1753319483403,-626.97,0.00022191,2]
[374488032,1753319483414,-1869.77,0.00022191,2]
[374488033,1753319483424,-400.0,0.00022191,2]
[374488034,1753319483435,-400.0,0.00022191,2]
[374488035,1753319483445,-400.0,0.00022191,2]
[374488036,1753319483455,-405.29,0.00022191,2]
[374488037,1753319483465,-400.0,0.00022191,2]
[374488038,1753319483475,-286.93565287,0.00022191,2]
[374488039,1753319483485,-400.0,0.00022191,2]
[374488040,1753319483495,-581.95,0.00022191,2]
[374488041,1753319483505,-918.3,0.00022191,2]
[374488042,1753319483515,-4097.85,0.00022191,2]
[374488043,1753319483525,-500.63,0.00022191,2]
[374488044,1753319483534,-460.0,0.00022191,2]
[374488045,1753319483543,-400.0,0.00022191,2]
[374488046,1753319483554,-400.0,0.00022191,2]
[374488047,1753319483563,-999.15,0.00022191,2]
[374488048,1753319483574,-205.61792335,0.00022191,2]
[374488049,1753319483584,-441.0117473,0.00022191,2]
[374488050,1753319483594,-400.0,0.00022191,2]
[374488051,1753319483604,-400.0,0.00022191,2]
[374488052,1753319483614,-640.64,0.00022191,2]
[374488053,1753319483623,-400.0,0.00022191,2]
[374488054,1753319483633,-526.59,0.00022191,2]
[374488055,1753319483643,-939.25,0.00022191,2]
[374488056,1753319483653,-785.23,0.00022191,2]
[374488057,1753319483663,-614.78,0.00022191,2]
[374488058,1753319483673,-767.87,0.00022191,2]
[374488059,1753319483683,-522.67132993,0.00022191,2]
[374488060,1753319483693,-5173.51,0.00022191,2]
[374488061,1753319483703,-400.0,0.00022191,2]
[374488062,1753319483713,-400.0,0.00022191,2]
[374488063,1753319483723,-911.67,0.00022191,2]
[374488064,1753319483733,-470.94,0.00022191,2]
[374488065,1753319483743,-400.0,0.00022191,2]
[374488066,1753319483754,-480.0,0.00022191,2]
[374488067,1753319483763,-284.78413101,0.00022191,2]
[374488068,1753319483774,-551.72,0.00022191,2]
[374488069,1753319483784,-1369.74,0.00022191,2]
[374488070,1753319483794,-400.0,0.00022191,2]
[374488071,1753319483804,-406.01581022,0.00022191,2]
[374488072,1753319483814,-400.0,0.00022191,2]
[374488073,1753319483824,-1209.05,0.00022191,2]
[374488074,1753319483835,-1317.42,0.00022191,2]
[374488075,1753319483845,-480.0,0.00022191,2]
[374488076,1753319483856,-400.0,0.00022191,2]
[374488077,1753319483866,-592.31,0.00022191,2]
[374488078,1753319483877,-400.0,0.00022191,2]
[374488079,1753319483888,-400.0,0.00022191,2]
[374488080,1753319483898,-400.0,0.00022191,2]
[374488081,1753319483908,-1372.88,0.00022191,2]
[374488082,1753319483919,-436.77,0.00022191,2]
[374488083,1753319483929,-510.97,0.00022191,2]
[374488084,1753319483939,-400.0,0.00022191,2]
[374488085,1753319483948,-1267.42,0.00022191,2]
[374488086,1753319483959,-591.16,0.00022191,2]
[374488087,1753319483969,-662.1,0.00022191,2]
[374488088,1753319483979,-400.0,0.00022191,2]
[374488089,1753319483989,-766.91,0.00022191,2]
[374488090,1753319483999,-400.0,0.00022191,2]
[374488091,1753319484009,-5556.5,0.00022191,2]
[374488092,1753319484019,-1088.12,0.00022191,2]
[374488093,1753319484028,-10498.89,0.00022191,2]
[374488094,1753319484039,-903.99,0.00022191,2]
[374488095,1753319484048,-400.0,0.00022191,2]
[374488096,1753319484058,-400.0,0.00022191,2]
[374488097,1753319484068,-4022.98,0.00022191,2]
[374488098,1753319484079,-607.21,0.00022191,2]
[374488099,1753319484089,-8960.84,0.00022191,2]
[374488100,1753319484099,-400.0,0.00022191,2]
[374488101,1753319484108,-400.0,0.00022191,2]
[374488102,1753319484119,-658.2,0.00022191,2]
[374488103,1753319484128,-160.0,0.00022191,2]
[374488104,1753319484138,-400.0,0.00022191,2]
[374488105,1753319484149,-532.19,0.00022191,2]
[374488106,1753319484158,-414.47,0.00022191,2]
[374488107,1753319484168,-400.0,0.00022191,2]
[374488108,1753319484178,-400.0,0.00022191,2]
[374488109,1753319484188,-400.0,0.00022191,2]
[374488110,1753319484198,-480.89,0.00022191,2]
[374488111,1753319484208,-321.26011898,0.00022191,2]
[374488112,1753319484218,-1048.11,0.00022191,2]
[374488113,1753319484228,-524.34,0.00022191,2]
[374488114,1753319484238,-565.82,0.00022191,2]
[374488115,1753319484247,-400.0,0.00022191,2]
[374488116,1753319484257,-400.0,0.00022191,2]
[374488117,1753319484267,-1368.53,0.00022191,2]
[374488118,1753319484277,-824.41,0.00022191,2]
[374488119,1753319484290,-2407.48,0.00022191,2]
[374488120,1753319484300,-400.0,0.00022191,2]
[374488121,1753319484310,-582.49,0.00022191,2]
[374488122,1753319484320,-183.70536178,0.00022191,2]
[374488123,1753319484331,-455.55,0.00022191,2]
[374488124,1753319484341,-480.0,0.00022191,2]
[374488125,1753319484350,-1151.51,0.00022191,2]
[374488126,1753319484360,-400.0,0.00022191,2]
[374488127,1753319484370,-4701.96,0.00022191,2]
[374488128,1753319484380,-171.38975285,0.00022191,2]
[374488129,1753319484390,-400.0,0.00022191,2]
[374488130,1753319484400,-1432.59,0.00022191,2]
[374488131,1753319484410,-459.04,0.00022191,2]
[374488132,1753319484420,-220.0,0.00022191,2]
[374488133,1753319484430,-400.0,0.00022191,2]
[374488134,1753319484441,-400.0,0.00022191,2]
[374488135,1753319484454,-1420.21,0.00022191,2]
[374488136,1753319484465,-414.9466187,0.00022191,2]
[374488137,1753319484476,-400.0,0.00022191,2]
[374488138,1753319484487,-1770.76,0.00022191,2]
[374488139,1753319484498,-528.39,0.00022191,2]
[374488140,1753319484514,-400.0,0.00022191,2]
[374488141,1753319484525,-540.0,0.00022191,2]
[374488142,1753319484536,-522.57238254,0.00022191,2]
[374488143,1753319484547,-446.25,0.00022191,2]
[374488144,1753319484557,-1561.34,0.00022191,2]
[374488145,1753319484568,-400.0,0.00022191,2]
[374488146,1753319484579,-459.66,0.00022191,2]
[374488147,1753319484589,-1363.79,0.00022191,2]
[374488148,1753319484600,-436.46,0.00022191,2]
[374488149,1753319484611,-400.0,0.00022191,2]
[374488150,1753319484622,-400.0,0.00022191,2]
[374488151,1753319484633,-493.16,0.00022191,2]
[374488152,1753319484653,-400.0,0.00022191,2]
[374488153,1753319484664,-1376.69,0.00022191,2]
[374488154,1753319484674,-1126.46,0.00022191,2]
[374488155,1753319484684,-465.26,0.00022191,2]
[374488156,1753319484694,-539.87,0.00022191,2]
[374488157,1753319484704,-400.0,0.00022191,2]
[374488158,1753319484714,-400.0,0.00022191,2]
[374488159,1753319484724,-745.75,0.00022191,2]
[374488160,1753319484735,-737.71,0.00022191,2]
[374488161,1753319484745,-1821.96,0.00022191,2]
[374488162,1753319484755,-647.22,0.00022191,2]
[374488163,1753319484766,-1782.16,0.00022191,2]
[374488164,1753319484776,-400.0,0.00022191,2]
[374488165,1753319484786,-400.0,0.00022191,2]
[374488166,1753319484797,-1105.26,0.00022191,2]
[374488167,1753319484807,-400.0,0.00022191,2]
[374488168,1753319484817,-400.0,0.00022191,2]
[374488169,1753319484828,-400.0,0.00022191,2]
[374488170,1753319484839,-927.43,0.00022191,2]
[374488171,1753319484849,-1505.17,0.00022191,2]
[374488172,1753319484860,-400.0,0.00022191,2]
[374488173,1753319484871,-400.0,0.00022191,2]
[374488174,1753319484882,-417.85741483,0.00022191,2]
[374488175,1753319484893,-1007.16,0.00022191,2]
[374488176,1753319484904,-400.0,0.00022191,2]
[374488177,1753319484914,-400.0,0.00022191,2]
[374488178,1753319484924,-799.64,0.00022191,2]
[374488179,1753319484934,-298.29911814,0.00022191,2]
[374488180,1753319484944,-400.0,0.00022191,2]
[374488181,1753319484954,-400.0,0.00022191,2]
[374488182,1753319484965,-1453.21,0.00022191,2]
[374488183,1753319484975,-480.0,0.00022191,2]
[374488184,1753319484984,-400.0,0.00022191,2]
[374488185,1753319484994,-400.0,0.00022191,2]
[374488186,1753319485005,-2369.09,0.00022191,2]
[374488187,1753319485015,-360.0,0.00022191,2]
[374488188,1753319485025,-400.0,0.00022191,2]
[374488189,1753319485035,-400.0,0.00022191,2]
[374488190,1753319485044,-1836.21,0.00022191,2]
[374488191,1753319485054,-400.0,0.00022191,2]
[374488192,1753319485064,-4369.62,0.00022191,2]
[374488193,1753319485074,-569.29,0.00022191,2]
[374488194,1753319485084,-400.0,0.00022191,2]
[374488195,1753319485094,-400.0,0.00022191,2]
[374488196,1753319485103,-453.9,0.00022191,2]
[374488197,1753319485113,-400.0,0.00022191,2]
[374488198,1753319485123,-653.46,0.00022191,2]
[374488199,1753319485133,-825.77,0.00022191,2]
[374488200,1753319485143,-1164.65,0.00022191,2]
[374488201,1753319485153,-726.39,0.00022191,2]
[374488202,1753319485163,-6026.02,0.00022191,2]
[374488203,1753319485172,-400.0,0.00022191,2]
[374488204,1753319485182,-2162.55,0.00022191,2]
[374488205,1753319485192,-1493.58,0.00022191,2]
[374488206,1753319485202,-400.0,0.00022191,2]
[374488207,1753319485211,-400.0,0.00022191,2]
[374488208,1753319485221,-1007.51,0.00022191,2]
[374488209,1753319485231,-400.0,0.00022191,2]
[374488210,1753319485241,-400.0,0.00022191,2]
[374488211,1753319485250,-998.97,0.00022191,2]